bitfinex-derivatives/quotes_ETHF0:USTF0_20250709
["timestamp","ask_amount","ask_price","bid_price","bid_amount"]
[1752095208989,3.2078,2744.9,2744.8,0.72846]
[1752095209295,1.32650916,2744.9,2744.8,4.86756]
[1752095209483,0.72841,2745.1,2744.8,3.93624]
[1752095209686,1.32694064,2745.0,2744.8,4.4553]
[1752095209889,0.95,2745.0,2744.8,1.2475]
[1752095210181,0.95,2744.9,2744.2,4.4553]
[1752095210382,0.72854,2744.5,2744.4,0.72856]
[1752095210586,0.7286,2744.3,2744.2,4.4553]
[1752095210785,3.2078,2744.7,2744.6,0.72852]
[1752095210982,2.77113,2744.9,2744.2,7.71044409]
[1752095211182,0.95,2744.9,2744.2,4.4553]
[1752095211383,0.72855,2744.5,2744.4,0.72856]
[1752095211592,0.72854,2744.6,2744.4,0.72856]
[1752095211992,0.95,2744.9,2744.3,0.72859]
[1752095212193,0.72856,2744.5,2744.3,1.97609]
[1752095212389,0.72856,2744.5,2744.4,0.72857]
[1752095212593,0.95,2744.9,2744.5,0.72854]
[1752095212790,1.31960088,2744.8,2744.5,0.72854]
[1752095212986,1.31960088,2744.7,2744.3,1.2475]
[1752095213198,2.04813088,2744.6,2744.4,0.72857]
[1752095213396,0.72854,2744.5,2744.3,1.97608]
[1752095213598,0.72853,2744.6,2744.4,0.72857]
[1752095213899,0.95,2744.8,2744.4,1.82143]
[1752095214098,0.95,2744.8,2744.7,0.72849]
[1752095214598,0.72849,2744.7,2744.6,0.8894]
[1752095214903,1.30733498,2744.7,2744.6,1.61792]
[1752095215200,0.72848,2744.8,2744.6,0.8894]
[1752095215400,0.72846,2744.9,2744.7,0.72847]
[1752095215700,0.72849,2744.7,2744.6,1.6179]
[1752095215898,0.72852,2744.6,2744.5,0.72853]
[1752095216096,0.95,2744.7,2744.6,0.72852]
[1752095216297,4.1578,2745.0,2744.4,1.82143]
[1752095216499,2.03639406,2744.9,2744.7,0.72847]
[1752095216700,1.30813826,2744.8,2744.7,0.72847]
[1752095217198,4.1578,2745.0,2744.5,1.2658]
[1752095217199,0.72843,2745.0,2744.5,4.01843]
[1752095217399,1.30924221,2744.9,2744.8,0.72846]
[1752095217798,1.30924221,2744.9,2744.8,1.65976]
[1752095218101,0.7284,2745.1,2745.0,0.7284]
[1752095218491,1.30894333,2745.1,2744.9,0.72842]
[1752095218698,1.6784,2745.1,2744.9,2.05842]
[1752095219001,0.72837,2745.2,2745.1,0.72838]
[1752095219301,0.72839,2745.1,2745.0,0.7284]
[1752095219504,2.03724179,2745.1,2745.0,0.7284]
[1752095219703,2.03724179,2745.1,2744.7,3.2078]
[1752095219704,0.95,2745.1,2744.7,3.2078]
[1752095219998,1.82124,2744.7,2743.6,3.2078]
[1752095220196,0.72867,2744.1,2743.9,0.72868]
[1752095220402,0.72867,2744.1,2744.0,1.33]
[1752095221296,3.2078,2744.3,2744.0,1.33]
[1752095221501,0.72865,2744.1,2744.0,1.33]
[1752095222096,4.1578,2744.6,2744.0,1.33]
[1752095222300,0.72859,2744.4,2744.2,3.2078]
[1752095222496,0.72867,2744.1,2743.9,3.2078]
[1752095222703,3.2078,2744.4,2743.9,3.2078]
[1752095222900,3.2078,2744.4,2744.0,2.1661]
[1752095223104,0.72856,2744.5,2744.2,0.72861]
[1752095223305,0.72856,2744.5,2744.3,1.96339]
[1752095223706,0.72856,2744.5,2744.3,1.9634]
[1752095224310,0.95,2744.8,2744.3,1.2348]
[1752095224509,0.72857,2744.4,2744.3,1.2348]
[1752095225804,3.2078,2744.7,2744.3,1.2348]
[1752095226012,0.72854,2744.5,2744.4,0.8725]
[1752095226209,0.72854,2744.5,2744.4,2.1569]
[1752095226406,3.2078,2744.7,2744.4,2.1569]
[1752095226711,3.9363,2744.7,2744.6,0.72852]
[1752095226912,3.2078,2744.7,2744.6,0.72852]
[1752095227102,0.72849,2744.8,2744.6,0.72852]
[1752095227302,0.72849,2744.8,2744.7,1.2844]
[1752095227502,3.93622,2745.0,2744.8,0.72844]
[1752095227706,3.2078,2745.0,2744.9,1.96434]
[1752095228310,0.7284,2745.1,2744.9,1.96434]
[1752095228507,0.7284,2745.1,2745.0,0.72841]
[1752095228709,0.72838,2745.1,2745.0,1.2359]
[1752095229007,2.03129313,2745.1,2745.0,1.2359]
[1752095229208,0.72838,2745.2,2745.0,1.2359]
[1752095229408,3.93615,2745.3,2745.1,0.72838]
[1752095229607,3.93615,2745.3,2745.2,1.2359]
[1752095229910,5.23865923,2745.3,2745.2,1.2359]
[1752095230109,4.51030923,2745.3,2745.2,1.96426]
[1752095230308,1.30250923,2745.3,2745.2,1.96426]
[1752095230513,3.93605,2745.6,2745.2,2.1539]
[1752095230710,1.30261214,2745.5,2745.4,0.72828]
[1752095230907,3.2078,2746.0,2745.6,0.72825]
[1752095231103,0.72821,2745.8,2745.7,2.2228]
[1752095231309,2.02941441,2745.8,2745.2,0.918]
[1752095231510,0.72832,2745.4,2745.3,1.3239]
[1752095232209,3.93612,2745.4,2745.3,1.3239]
[1752095232410,3.2078,2745.4,2744.9,3.25514409]
[1752095232714,0.72841,2745.0,2744.8,0.72845]
[1752095232911,0.72844,2744.9,2744.8,2.05235]
[1752095233113,6.27053,2745.4,2744.9,0.72844]
[1752095233313,0.7284,2745.1,2744.9,0.72842]
[1752095233613,0.7284,2745.1,2744.9,0.72843]
[1752095233808,0.72844,2744.9,2744.8,1.3239]
[1752095234012,3.2078,2745.4,2744.8,1.3239]
[1752095234313,3.2078,2745.4,2745.0,3.2078]
[1752095234314,0.72831,2745.4,2745.0,3.2078]
[1752095234510,0.72831,2745.4,2745.1,1.3465]
[1752095235012,4.122,2745.7,2745.2,0.8798]
[1752095235013,0.72833,2745.3,2745.2,0.8798]
[1752095235208,4.122,2745.7,2745.1,1.3465]
[1752095235414,0.72832,2745.4,2745.3,0.72832]
[1752095235616,2.01815847,2745.5,2745.4,0.7283]
[1752095235914,2.01817869,2745.5,2745.4,0.7283]
[1752095236115,1.28989869,2745.5,2745.4,0.7283]
[1752095236513,1.28989869,2745.5,2745.2,1.3465]
[1752095236514,0.7283,2745.4,2745.3,0.72833]
[1752095236713,0.7283,2745.5,2745.2,1.3465]
[1752095236916,0.7283,2745.5,2745.4,0.7283]
[1752095237218,2.01257112,2745.5,2745.4,0.7283]
[1752095237818,3.2078,2745.7,2745.5,0.72828]
[1752095237819,0.72827,2745.6,2745.5,0.72828]
[1752095238010,1.28418406,2745.6,2745.2,1.3465]
[1752095238217,3.2078,2745.4,2745.0,0.72841]
[1752095238417,3.2078,2745.4,2744.9,0.8798]
[1752095238620,1.82083,2745.3,2744.8,1.2536]
[1752095238818,0.72844,2744.9,2744.8,1.2536]
[1752095239325,3.2078,2745.1,2744.5,0.909]
[1752095239524,0.72849,2744.7,2744.5,2.89113]
[1752095239916,3.2078,2745.1,2744.5,2.1626]
[1752095240117,0.72844,2745.0,2744.8,0.72845]
[1752095240517,0.72854,2744.5,2744.4,3.2078]
[1752095241419,0.72854,2744.5,2744.4,3.93637]
[1752095241721,0.72854,2744.5,2744.4,3.2078]
[1752095242116,0.72859,2744.4,2744.1,2.2311]
[1752095242320,0.72859,2744.4,2744.2,0.72861]
[1752095242626,0.72858,2744.4,2744.2,0.72861]
[1752095242823,0.7286,2744.3,2744.1,2.95973]
[1752095243021,7.2257,2744.8,2744.1,2.95973]
[1752095243022,5.4045,2744.8,2744.1,2.2311]
[1752095243220,0.72857,2744.4,2744.2,0.72861]
[1752095243420,2.77767,2744.7,2744.1,2.2311]
[1752095243622,2.1967,2744.7,2744.2,0.7286]
[1752095243924,0.7286,2744.3,2744.1,2.95974]
[1752095244426,0.72862,2744.2,2744.1,2.2311]
[1752095244624,0.72862,2744.2,2744.0,55.6928]
[1752095244821,0.72862,2744.2,2744.0,56.42148]
[1752095245322,0.72865,2744.1,2744.0,3.2078]
[1752095245514,3.2078,2744.5,2744.0,3.93647]
[1752095245720,0.72865,2744.1,2744.0,3.2078]
[1752095245920,1.82163,2744.1,2743.6,3.2078]
[1752095246125,0.72874,2743.8,2743.6,3.2078]
[1752095246433,0.72874,2743.8,2743.6,3.93658]
[1752095247120,5.02941,2744.2,2743.6,3.93658]
[1752095247424,0.72876,2743.7,2743.6,3.2078]
[1752095247623,0.72881,2743.5,2743.4,2.1928]
[1752095247920,0.72877,2743.7,2743.5,0.7288]
[1752095248225,3.2078,2743.9,2743.5,1.2787]
[1752095248428,0.72874,2743.8,2743.6,0.72877]
[1752095248625,0.72874,2743.8,2743.7,2.00746]
[1752095248920,5.98572,2744.3,2743.7,1.2787]
[1752095249128,0.72871,2743.9,2743.8,1.2986]
[1752095250026,0.72869,2744.0,2743.8,2.02733]
[1752095250218,0.9564,2744.2,2743.8,1.2986]
[1752095250415,3.2078,2744.3,2743.8,1.2986]
[1752095250616,3.2078,2744.3,2743.9,0.9027]
[1752095250817,3.93641,2744.3,2744.1,0.72863]
[1752095251023,3.2078,2744.3,2744.2,2.02722]
[1752095251222,1.82102,2745.1,2744.2,2.02722]
[1752095251223,3.2078,2744.7,2744.6,0.72852]
[1752095252132,3.93629,2744.7,2744.5,1.63122]
[1752095252429,3.93629,2744.7,2744.6,2.00672]
[1752095252430,3.2078,2744.7,2744.6,2.00672]
[1752095252625,0.72846,2744.9,2744.6,1.2782]
[1752095252827,0.72846,2744.8,2744.7,1.2782]
[1752095253024,3.2078,2745.1,2744.7,1.2782]
[1752095253229,3.9362,2745.1,2744.9,0.72842]
[1752095253428,3.2078,2745.1,2745.0,2.00661]
[1752095253630,3.2078,2745.4,2745.3,0.72833]
[1752095253931,4.50174843,2745.4,2745.3,0.72833]
[1752095254127,3.2078,2745.4,2745.3,0.72833]
[1752095254527,3.2078,2745.7,2745.3,0.72833]
[1752095254733,3.2078,2746.0,2745.5,3.34505798]
[1752095255039,1.29402363,2745.9,2745.8,0.7282]
[1752095255235,3.2078,2746.0,2745.9,1.62977]
[1752095255428,3.93595,2746.0,2745.9,1.62977]
[1752095255628,3.93595,2746.0,2745.9,0.9016]
[1752095256028,3.93595,2746.0,2745.9,2.87557]
[1752095256230,3.93595,2746.0,2745.9,2.1474]
[1752095256429,3.2078,2746.0,2745.9,2.87557]
[1752095256829,0.72815,2746.0,2745.9,2.1474]
[1752095257030,0.9564,2746.0,2745.4,55.378]
[1752095257226,0.9564,2746.0,2745.3,3.2078]
[1752095257434,0.72836,2745.2,2745.1,3.25514409]
[1752095257731,3.2078,2745.8,2745.4,0.7283]
[1752095257930,0.72821,2745.8,2745.6,0.72824]
[1752095258129,0.9564,2745.9,2745.7,1.8154338]
[1752095258325,0.9564,2745.9,2745.8,1.2594338]
[1752095258528,3.2078,2746.1,2746.0,0.72815]
[1752095258737,3.2078,2746.1,2746.0,0.5312338]
[1752095258925,3.2078,2746.1,2746.0,1.2593838]
[1752095259233,1.64725,2746.4,2746.2,0.72809]
[1752095259431,1.64725,2746.4,2746.3,0.5312338]
[1752095259735,2.20792109,2746.4,2746.3,0.5312338]
[1752095260032,2.93596109,2746.4,2746.3,0.5312338]
[1752095260235,2.93596109,2746.4,2746.3,0.53072936]
[1752095260434,1.64724,2746.4,2746.3,0.53072936]
[1752095260830,0.72804,2746.4,2746.3,0.53072936]
[1752095261432,0.72811,2746.2,2746.0,1.2842]
[1752095261631,0.72808,2746.3,2746.0,1.2842]
[1752095261835,0.72809,2746.2,2746.0,1.2842]
[1752095262034,0.72812,2746.1,2746.0,1.2842]
[1752095262232,3.2078,2746.3,2745.3,52.482]
[1752095262546,0.72828,2745.5,2745.4,0.53511973]
[1752095262837,1.64748,2745.5,2745.4,0.53511973]
[1752095263137,0.7284,2745.1,2744.9,1.3132]
[1752095263336,5.0285,2745.6,2744.9,1.3132]
[1752095263337,0.72837,2745.2,2745.0,1.26352184]
[1752095263538,0.72837,2745.2,2745.1,1.3132]
[1752095263839,3.93615,2745.3,2745.1,2.04157]
[1752095264131,3.2078,2745.6,2745.3,0.72831]
[1752095264331,0.72817,2746.0,2745.7,0.72822]
[1752095264536,1.28411235,2745.9,2745.4,6.3014]
[1752095264835,0.72818,2745.9,2745.6,0.72823]
[1752095265136,0.72818,2745.9,2745.7,1.2925]
[1752095265337,0.7282,2745.8,2745.7,1.2925]
[1752095266138,0.9192,2746.1,2745.7,1.2925]
[1752095266337,0.7282,2745.8,2745.7,1.2925]
[1752095267537,0.72828,2745.5,2745.4,0.8758]
[1752095267737,0.72826,2745.6,2745.4,1.6041]
[1752095267932,0.72826,2745.6,2745.5,1.2208]
[1752095270044,0.72826,2745.6,2745.0,3.2078]
[1752095270238,0.72824,2745.7,2745.6,0.72825]
[1752095270740,0.72825,2745.6,2745.4,2.05589]
[1752095270937,0.9266,2746.0,2745.4,1.3276]
[1752095271239,0.7282,2745.8,2745.7,0.72821]
[1752095271439,0.72814,2746.1,2745.9,0.72816]
[1752095271635,0.72814,2746.1,2746.0,2.05575]
[1752095271838,3.2078,2746.2,2746.1,0.72812]
[1752095272930,0.72812,2746.1,2746.0,2.05573]
[1752095273241,0.72816,2746.0,2745.7,0.8]
[1752095273438,3.2078,2746.2,2745.7,0.8]
[1752095273439,3.2078,2746.2,2746.1,0.72812]
[1752095273639,0.72805,2746.4,2745.9,3.2078]
[1752095273840,0.72805,2746.4,2746.2,0.72807]
[1752095274037,0.72802,2746.5,2746.4,0.72803]
[1752095274232,3.2078,2746.6,2746.3,1.2156]
[1752095274537,0.72804,2746.4,2746.3,1.2156]
[1752095275134,0.72804,2746.4,2746.3,1.74529855]
[1752095275332,0.72804,2746.4,2746.3,0.52969855]
[1752095276239,1.64724,2746.4,2746.3,0.52969855]
[1752095276444,6.64724,2746.4,2746.3,0.36628327]
[1752095276846,0.7282,2745.8,2745.7,0.8]
[1752095277047,3.2078,2746.4,2745.7,6.75366]
[1752095277246,0.7281,2746.2,2746.0,0.72812]
[1752095277450,0.72812,2746.1,2746.0,0.72812]
[1752095277946,0.72809,2746.3,2745.8,1.82049]
[1752095278145,0.72812,2746.2,2746.0,0.72813]
[1752095278351,0.72812,2746.1,2746.0,0.72813]
[1752095278549,0.72811,2746.2,2746.0,0.72813]
[1752095278742,3.2078,2746.4,2745.9,0.72816]
[1752095278942,0.72819,2745.9,2745.7,0.8]
[1752095279147,0.72819,2745.9,2745.8,0.7282]
[1752095279339,3.2078,2746.1,2745.7,1.5282]
[1752095279544,0.7282,2745.9,2745.8,0.7282]
[1752095279743,0.7282,2745.8,2745.7,0.8]
[1752095280147,3.2078,2745.8,2745.5,0.72827]
[1752095280344,3.2078,2745.8,2745.6,0.72825]
[1752095280345,0.72824,2745.7,2745.6,0.72825]
[1752095280539,0.72823,2745.7,2745.6,0.72824]
[1752095281244,0.72816,2746.0,2745.9,0.72816]
[1752095281549,1.82018,2746.3,2745.5,1.8207]
[1752095281550,3.2078,2746.1,2745.5,1.8207]
[1752095281750,0.72821,2745.8,2745.7,0.7282]
[1752095282044,5.02814,2746.1,2745.4,5.02856]
[1752095282250,0.72819,2745.9,2745.8,0.72819]
[1752095282549,3.2078,2746.1,2745.6,1.82062]
[1752095282744,0.9192,2746.3,2745.7,5.02835]
[1752095282944,2.00580218,2746.2,2746.1,0.72812]
[1752095283143,1.27768218,2746.2,2746.1,0.72812]
[1752095283345,1.27768218,2746.2,2745.7,3.2078]
[1752095283643,1.27768218,2746.2,2745.7,0.72821]
[1752095283644,0.72822,2745.8,2745.7,0.72821]
[1752095283944,5.94732,2746.1,2745.3,37.21847409]
[1752095284246,0.67813802,2745.6,2745.5,0.72825]
[1752095284448,0.72821,2745.8,2745.7,0.7282]
[1752095285245,0.72822,2745.8,2745.7,0.7282]
[1752095285540,0.72816,2746.0,2745.9,0.72815]
[1752095285747,0.7282,2745.9,2745.8,0.72818]
[1752095286649,1.82039,2746.0,2745.6,3.2078]
[1752095286850,0.72827,2745.6,2745.5,0.72825]
[1752095287046,0.72824,2745.7,2745.6,0.72823]
[1752095287951,0.72824,2745.8,2745.7,0.72821]
[1752095288452,0.72824,2745.8,2745.7,1.25792604]
[1752095288854,0.72824,2745.8,2745.7,0.52971604]
[1752095289541,4.94214,2745.8,2745.7,0.52971604]
[1752095289852,11.21776782,2745.8,2745.7,0.52971604]
[1752095290353,12.45536782,2745.8,2745.7,0.52971604]
[1752095291048,12.45536782,2745.8,2745.7,6.04e-06]
[1752095291444,6.72712782,2745.8,2745.1,1.82093]
[1752095291645,3.93609,2745.5,2745.0,4.21807636]
[1752095291857,3.2078,2745.5,2745.2,0.72834]
[1752095292158,0.7283,2745.4,2745.3,1.2212]
[1752095292451,4.2139,2745.5,2745.3,1.94951]
[1752095292649,0.7283,2745.4,2745.3,1.2212]
[1752095293154,0.7283,2745.4,2744.9,7.40214409]
[1752095293155,0.72834,2745.3,2745.0,2.17984959]
[1752095293454,0.72832,2745.4,2745.1,1.2212]
[1752095293651,3.2078,2745.5,2745.1,3.40104959]
[1752095293850,3.93609,2745.5,2745.4,0.7283]
[1752095294044,3.2078,2745.5,2745.4,0.7283]
[1752095294453,4.0438,2746.0,2745.5,0.72827]
[1752095294655,0.72823,2745.7,2745.5,0.72827]
[1752095294858,0.72823,2745.7,2745.6,1.3343]
[1752095295055,3.2078,2746.0,2745.6,3.73134636]
[1752095295354,3.2078,2746.0,2745.9,0.72817]
[1752095295554,3.2078,2746.0,2745.9,3.12521636]
[1752095295747,3.2078,2746.0,2745.9,4.06441636]
[1752095296353,3.2078,2746.0,2745.9,3.12521636]
[1752095296650,0.72811,2746.2,2745.9,2.39704636]
[1752095296854,0.72812,2746.1,2746.0,2.06243]
[1752095297048,0.7282,2745.8,2745.7,0.8214]
[1752095297445,0.7282,2745.8,2745.7,2.0715]
[1752095298057,0.72824,2745.7,2745.5,2.17984959]
[1752095298256,0.72822,2745.7,2745.6,1.2501]
[1752095298556,6.03422,2746.1,2745.6,1.97833]
[1752095298750,0.72822,2745.7,2745.6,1.2501]
[1752095299256,0.72818,2745.9,2745.8,0.72819]
[1752095299453,0.72816,2746.0,2745.9,0.72816]
[1752095300257,0.72816,2746.0,2745.8,0.8386]
[1752095300557,0.72817,2745.9,2745.8,0.8386]
[1752095300758,0.72822,2745.7,2745.6,1.2496]
[1752095301655,1.0061,2745.9,2745.6,1.97785]
[1752095301656,0.72822,2745.8,2745.6,1.97785]
[1752095301956,0.72822,2745.7,2745.6,1.97785]
[1752095302155,0.72819,2745.9,2745.7,0.7282]
[1752095302357,1.73429,2745.9,2745.4,5.38764959]
[1752095302658,0.72827,2745.6,2745.5,1.2496]
[1752095302853,0.72827,2745.6,2745.5,1.97788]
[1752095303156,0.72821,2745.8,2745.7,0.72822]
[1752095303553,0.72821,2745.8,2745.5,1.2496]
[1752095303554,0.72823,2745.7,2745.6,0.72824]
[1752095303752,6.03424,2746.1,2745.6,0.72824]
[1752095304063,0.72822,2745.8,2745.7,1.2579]
[1752095305359,3.2078,2746.1,2745.7,1.2579]
[1752095305552,3.93593,2746.1,2746.0,0.72815]
[1752095305857,3.93592,2746.1,2746.0,0.72815]
[1752095306355,0.72815,2746.0,2745.9,1.2579]
[1752095306553,1.0061,2746.0,2745.5,1.3081]
[1752095306759,0.72816,2746.0,2745.9,0.72816]
[1752095306955,5.02798,2746.3,2745.6,3.99474959]
[1752095307154,0.72817,2746.0,2745.9,0.72817]
[1752095307355,3.2078,2746.3,2745.7,5.02837]
[1752095307561,1.82024,2746.2,2745.7,5.38764959]
[1752095307749,0.7282,2745.8,2745.7,3.93601]
[1752095308457,1.0061,2746.1,2745.7,3.2078]
[1752095308649,0.72819,2745.9,2745.8,0.72819]
[1752095308855,0.73018094,2746.0,2745.9,0.72816]
[1752095309053,0.73018094,2746.0,2745.7,3.2078]
[1752095309259,0.00202094,2746.0,2745.9,0.72817]
[1752095309459,0.72818,2745.9,2745.8,0.72818]
[1752095309759,0.7282,2745.8,2745.7,3.2078]
[1752095310156,1.3692,2745.8,2745.7,3.2078]
[1752095310359,2.3753,2745.8,2745.7,3.2078]
[1752095310665,0.72822,2745.7,2745.6,2.17984959]
[1752095310954,0.641,2745.7,2745.6,2.17984959]
[1752095311163,0.72821,2745.8,2745.7,0.72822]
[1752095311459,0.00202094,2746.0,2745.9,0.72817]
[1752095311652,0.64302094,2746.0,2745.9,1.39597]
[1752095312059,0.72817,2745.9,2745.8,1.57019]
[1752095312260,0.73017094,2746.0,2745.9,0.72817]
[1752095312461,0.64302094,2746.0,2745.9,1.39597]
[1752095312661,1.37117094,2746.0,2745.9,1.39597]
[1752095312850,1.37117094,2746.0,2745.9,0.72817]
[1752095313161,0.72817,2745.9,2745.8,0.842]
[1752095313368,0.7282,2745.8,2745.7,2.17984959]
[1752095313554,1.6471,2745.8,2745.5,3.25514409]
[1752095313766,0.72825,2745.6,2745.5,3.25514409]
[1752095313952,1.36925,2745.6,2745.5,3.25514409]
[1752095314151,0.00202094,2746.0,2745.9,0.72817]
[1752095314352,0.00202094,2746.0,2745.9,1.39597]
[1752095314955,1.37118094,2746.0,2745.9,0.72817]
[1752095315651,1.37118094,2746.0,2745.9,1.39597]
[1752095316961,1.37118094,2746.0,2745.9,0.6678]
[1752095317362,1.37118094,2746.0,2745.9,1.39597]
[1752095317560,1.37118094,2746.0,2745.9,0.6678]
[1752095317761,3.45761094,2746.0,2745.7,2.18084656]
[1752095318062,0.72821,2745.8,2745.7,0.7282]
[1752095318254,0.9942,2745.9,2745.8,0.7282]
[1752095318452,0.72817,2745.9,2745.8,0.7282]
[1752095318658,0.72821,2745.8,2745.7,0.72821]
[1752095318965,1.36921,2745.8,2745.7,1.39601]
[1752095319164,0.72819,2745.9,2745.8,0.7282]
[1752095319465,1.39179,2745.9,2745.8,1.4223]
[1752095319765,0.72822,2745.7,2745.6,2.18084656]
[1752095319964,1.39182,2745.7,2745.6,2.18084656]
[1752095320160,0.72825,2745.6,2745.5,2.90912656]
[1752095320466,1.39185,2745.6,2745.5,0.72828]
[1752095320865,0.72828,2745.5,2745.4,3.98343409]
[1752095321063,1.39188,2745.5,2745.4,3.98344409]
[1752095321367,0.72828,2745.5,2745.4,4.61074409]
[1752095321557,1.39188,2745.5,2745.4,4.62889634]
[1752095321758,1.39188,2745.5,2745.4,3.27329634]
[1752095321961,0.7283,2745.4,2745.3,4.85292634]
[1752095322161,0.6636,2745.4,2745.3,2.20693]
[1752095322565,1.3919,2745.4,2745.3,2.20693]
[1752095322762,0.6636,2745.4,2745.3,2.20693]
[1752095322966,1.3919,2745.4,2745.3,2.20693]
[1752095323566,0.72829,2745.5,2745.4,0.7283]
[1752095323756,1.39189,2745.5,2745.4,5.31663524]
[1752095323960,1.39189,2745.5,2745.4,5.94393524]
[1752095324569,1.39189,2745.5,2745.4,2.6686]
[1752095324768,1.39189,2745.5,2745.4,5.94486965]
[1752095325668,1.39189,2745.5,2745.4,1.9403]
[1752095326062,1.39189,2745.5,2745.4,5.94486965]
[1752095327172,1.39189,2745.5,2745.4,5.21656965]
[1752095327474,14.08297286,2745.5,2745.2,2.18420574]
[1752095327765,0.72833,2745.3,2745.2,2.18420574]
[1752095327969,0.72836,2745.2,2745.1,2.18420574]
[1752095328169,5.43776,2745.2,2745.1,2.18420574]
[1752095328369,6.43196,2745.2,2745.1,2.18420574]
[1752095329970,0.72846,2744.8,2744.7,5.39200574]
[1752095330162,7.52456,2745.2,2744.7,8.50215286]
[1752095330163,3.2078,2745.2,2744.7,8.50215286]
[1752095330363,3.2078,2745.2,2744.9,2.18295122]
[1752095330364,0.72841,2745.0,2744.9,2.18295122]
[1752095330562,1.39201,2745.0,2744.9,2.81025122]
[1752095330769,3.2078,2745.2,2744.9,1.6296]
[1752095330963,0.72838,2745.1,2745.0,2.3289]
[1752095331169,0.72838,2745.1,2745.0,4.49451]
[1752095331368,0.72838,2745.1,2745.0,3.7661]
[1752095331568,0.72837,2745.2,2745.0,3.7661]
[1752095331867,0.72838,2745.1,2745.0,2.7638]
[1752095332068,3.2078,2745.5,2745.0,3.7661]
[1752095332262,3.2078,2745.5,2745.1,5.21992286]
[1752095332466,3.2078,2745.5,2745.3,0.72832]
[1752095332467,0.72832,2745.4,2745.3,0.72832]
[1752095332673,0.72838,2745.1,2745.0,4.0177]
[1752095332871,0.72838,2745.1,2745.0,0.8099]
[1752095333070,0.72838,2745.1,2745.0,1.4372]
[1752095334169,0.72838,2745.1,2745.0,2.7465]
[1752095336273,1.39198,2745.1,2745.0,1.3093]
[1752095336471,0.72846,2744.8,2744.7,2.18295122]
[1752095336866,0.72849,2744.7,2744.6,3.2078]
[1752095337071,0.72852,2744.6,2744.5,4.08496965]
[1752095337267,0.72854,2744.5,2744.3,3.2078]
[1752095337466,0.72857,2744.4,2744.3,3.2078]
[1752095337671,0.72857,2744.4,2744.3,3.8351]
[1752095337978,0.72857,2744.4,2744.3,8.80575522]
[1752095337979,2.38637,2744.4,2744.3,8.80575522]
[1752095338183,0.7286,2744.3,2744.2,5.13025522]
[1752095338372,4.8656,2744.3,2744.0,4.32155522]
[1752095338577,0.9942,2744.2,2743.9,0.72869]
[1752095338772,1.39228,2744.0,2743.9,6.22525522]
[1752095338981,1.39228,2744.0,2743.9,1.9037]
[1752095340081,1.6578,2744.0,2743.8,4.32155522]
[1752095340282,0.6636,2744.0,2743.9,0.6273]
[1752095340478,0.72863,2744.2,2744.1,0.72864]
[1752095340676,0.72863,2744.2,2744.1,0.6273]
[1752095340878,0.72863,2744.2,2744.1,1.35595]
[1752095341073,0.72868,2744.0,2743.9,6.51065522]
[1752095341383,7.42594286,2744.4,2743.9,0.6273]
[1752095341384,3.2078,2744.4,2743.9,0.6273]
[1752095341577,0.7286,2744.3,2744.2,3.99486328]
[1752095341787,1.3922,2744.3,2744.2,3.89354328]
[1752095341974,0.7286,2744.3,2744.2,3.89354328]
[1752095342378,1.3922,2744.3,2744.2,4.70864328]
[1752095342684,3.93637,2744.4,2744.3,0.7286]
[1752095342884,3.93637,2744.4,2744.3,4.6215034]
[1752095343182,4.59997,2744.4,2744.3,0.6273]
[1752095343381,0.7286,2744.3,2744.2,4.0807034]
[1752095343573,0.6636,2744.3,2744.2,4.7080034]
[1752095343772,0.6636,2744.3,2744.2,1.4424]
[1752095343773,1.3922,2744.3,2744.2,1.4424]
[1752095343981,1.3922,2744.3,2744.2,0.8151]
[1752095344582,1.3922,2744.3,2744.2,1.4424]
[1752095344779,1.3922,2744.3,2744.2,0.8151]
[1752095344983,0.7287,2743.9,2743.8,28.90116634]
[1752095345180,1.3923,2743.9,2743.8,27.3513]
[1752095345575,1.3923,2743.9,2743.8,0.6273]
[1752095345786,0.72873,2743.8,2743.7,0.8708]
[1752095345988,0.72873,2743.8,2743.7,1.4981]
[1752095346183,0.72873,2743.8,2743.7,2.22686]
[1752095346584,1.82159,2744.2,2743.7,1.4981]
[1752095346882,1.39233,2743.8,2743.7,3.04796634]
[1752095347079,1.39233,2743.8,2743.7,0.8708]
[1752095348580,3.2078,2744.1,2743.7,1.4981]
[1752095348783,1.39233,2743.8,2743.7,1.4981]
[1752095348977,1.39233,2743.8,2743.7,0.8708]
[1752095349786,3.2078,2744.1,2744.0,0.72868]
[1752095349977,3.2078,2744.1,2744.0,3.78783286]
[1752095350686,3.2078,2744.5,2744.4,0.72856]
[1752095350988,0.72859,2744.4,2744.3,0.72857]
[1752095351189,3.93636,2744.5,2744.4,1.39107]
[1752095351388,3.93636,2744.5,2744.3,2.39665286]
[1752095351389,0.7286,2744.3,2744.2,27.4456]
[1752095351785,0.7286,2744.3,2744.2,0.6625]
[1752095352491,0.72859,2744.4,2744.3,0.72857]
[1752095354182,5.02911,2744.6,2744.2,0.6625]
[1752095354183,3.2078,2744.6,2744.2,0.6625]
[1752095354383,3.2078,2744.6,2744.5,0.72854]
[1752095354894,3.2078,2744.6,2744.5,4.74249286]
[1752095355192,0.72845,2744.9,2744.8,0.72845]
[1752095355392,1.38675,2744.9,2744.8,0.72845]
[1752095356897,1.38675,2744.9,2744.8,1.39095]
[1752095357296,1.38674,2744.9,2744.8,1.39095]
[1752095358099,1.38674,2744.9,2744.8,0.6625]
[1752095358293,1.38674,2744.9,2744.8,1.39096]
[1752095358798,0.6583,2744.9,2744.8,1.39096]